bitfinex/quotes_BTCUSD_20251117
["timestamp","ask_amount","ask_price","bid_price","bid_amount"]
[1763388660439,0.00013244,94189.0,94188.0,0.14758052]
[1763388660658,0.00013244,94189.0,94188.0,0.16233857]
[1763388661864,0.00013244,94189.0,94188.0,0.16333857]
[1763388662105,0.00013244,94189.0,94188.0,0.16233857]
[1763388662338,0.00013244,94189.0,94188.0,0.11891983]
[1763388662572,0.00013244,94189.0,94188.0,0.10516178]
[1763388663117,0.00013244,94189.0,94188.0,0.001]
[1763388663817,0.00013244,94189.0,94143.0,0.10416178]
[1763388664080,0.323,94179.0,94174.0,0.10416178]
[1763388664573,0.323,94179.0,94158.0,0.05810276]
[1763388664574,0.97135549,94170.0,94158.0,0.05810276]
[1763388664778,0.97135549,94170.0,94159.0,0.00581028]
[1763388664986,0.323,94169.0,94158.0,0.05810276]
[1763388665825,0.323,94169.0,94159.0,0.10416178]
[1763388667750,0.323,94169.0,94143.0,0.10416178]
[1763388667951,0.323,94152.0,94143.0,0.10416178]
[1763388668150,0.323,94152.0,94129.0,0.10416178]
[1763388668377,0.97135549,94140.0,94129.0,0.10416178]
[1763388668578,0.323,94149.0,94130.0,0.01697415]
[1763388668759,0.323,94149.0,94129.0,0.10416178]
[1763388669133,0.32305154,94149.0,94129.0,0.10416178]
[1763388669330,0.32305154,94149.0,94130.0,0.01041618]
[1763388669331,0.97135549,94140.0,94130.0,0.01041618]
[1763388669677,0.32305154,94149.0,94130.0,0.01041618]
[1763388669874,0.32305154,94149.0,94144.0,0.10416178]
[1763388670188,0.32305154,94149.0,94145.0,0.01644106]
[1763388670399,0.32305154,94149.0,94144.0,0.10416178]
[1763388670600,5.154e-05,94149.0,94130.0,0.01041618]
[1763388670778,5.154e-05,94149.0,94131.0,0.0114578]
[1763388670980,5.154e-05,94149.0,94144.0,0.10416178]
[1763388671329,5.154e-05,94149.0,94145.0,0.01697216]
[1763388671695,5.154e-05,94149.0,94144.0,0.10213394]
[1763388672566,5.154e-05,94149.0,94145.0,0.00159329]
[1763388672726,5.154e-05,94149.0,94148.0,0.10416178]
[1763388672927,5.154e-05,94149.0,94148.0,0.01041618]
[1763388673152,5.154e-05,94149.0,94129.0,0.10416178]
[1763388673397,5.154e-05,94149.0,94129.0,0.00416178]
[1763388673601,0.32305154,94149.0,94144.0,0.10416178]
[1763388673739,0.32305154,94149.0,94129.0,0.00416178]
[1763388674081,0.97135549,94140.0,94129.0,0.00416178]
[1763388674489,0.323,94139.0,94100.0,0.05721234]
[1763388674767,0.97135549,94130.0,94115.0,0.00861618]
[1763388674983,0.34955929,94129.0,94097.0,0.10416178]
[1763388675192,0.323,94119.0,94098.0,0.0026568]
[1763388675423,0.323,94119.0,94112.0,0.10416178]
[1763388675633,0.323,94119.0,94097.0,0.10416178]
[1763388675847,0.323,94109.0,94098.0,0.01061618]
[1763388676480,0.323,94109.0,94098.0,0.01105812]
[1763388677961,0.01324616,94139.0,94098.0,0.01105812]
[1763388678141,0.323,94119.0,94112.0,0.10416178]
[1763388678343,0.0265624,94118.0,94098.0,0.01105812]
[1763388678541,0.0265624,94118.0,94099.0,0.01152199]
[1763388678753,0.0265624,94118.0,94097.0,0.09912571]
[1763388678958,0.97135549,94110.0,94097.0,0.09912571]
[1763388679102,0.323,94109.0,94097.0,0.09912571]
[1763388680046,0.00044118,94118.0,94098.0,0.01328402]
[1763388680211,0.00044118,94118.0,94113.0,0.10416178]
[1763388680405,0.00044118,94118.0,94098.0,0.01328402]
[1763388681187,0.323,94109.0,94098.0,0.01328402]
[1763388681306,0.323,94109.0,94097.0,0.09912571]
[1763388681508,0.00044118,94118.0,94098.0,0.01222058]
[1763388681713,0.00044118,94118.0,94117.0,0.10416178]
[1763388682861,0.00044118,94118.0,94097.0,0.09912571]
[1763388683069,0.00044118,94118.0,94117.0,0.10416178]
[1763388684576,0.00044118,94118.0,94117.0,0.10516178]
[1763388685723,0.00044118,94118.0,94117.0,0.10416178]
[1763388685926,0.00044118,94118.0,94117.0,0.08716178]
[1763388686350,0.00044118,94118.0,94117.0,0.08816178]
[1763388687597,0.00044118,94118.0,94117.0,0.08716178]
[1763388689419,0.00044118,94118.0,94117.0,0.19936178]
[1763388689619,0.00044118,94118.0,94117.0,0.08716178]
[1763388690246,0.00044118,94118.0,94117.0,0.08816178]
[1763388691571,0.00044118,94118.0,94117.0,0.23796178]
[1763388693115,0.00044118,94118.0,94117.0,0.19196178]
[1763388694038,0.00022629,94118.0,94117.0,0.19196178]
[1763388695524,0.00022629,94118.0,94117.0,0.19358133]
[1763388695727,0.00022629,94118.0,94117.0,0.19196178]
[1763388696119,0.00022629,94118.0,94117.0,0.19570636]
[1763388697189,0.00022629,94118.0,94117.0,0.19196178]
[1763388697599,0.00022629,94118.0,94117.0,0.001]
[1763388699050,0.00022629,94118.0,94092.0,0.1498]
[1763388699256,0.97135549,94110.0,94092.0,0.1498]
[1763388699986,0.97135549,94110.0,94097.0,0.0641257]
[1763388700188,0.02656494,94109.0,94098.0,0.00162076]
[1763388700395,0.00022629,94118.0,94094.0,0.00162076]
[1763388700396,0.97135549,94108.0,94094.0,0.00162076]
[1763388700598,0.97135549,94108.0,94094.0,0.00238515]
[1763388700897,0.0265655,94107.0,94094.0,0.00344792]
[1763388701134,0.97135549,94108.0,94094.0,0.00344792]
[1763388701337,0.0265655,94107.0,94094.0,0.00344792]
[1763388701962,0.97135549,94108.0,94094.0,0.00344792]
[1763388702266,0.97135549,94108.0,94097.0,0.001]
[1763388702670,0.97135549,94108.0,94094.0,0.00344792]
[1763388703082,0.00022629,94118.0,94094.0,0.00344792]
[1763388703300,0.00022629,94118.0,94110.0,0.10416178]
[1763388703501,0.00022629,94118.0,94111.0,0.00344729]
[1763388703701,0.00022629,94118.0,94112.0,0.1498]
[1763388703907,0.00022629,94118.0,94112.0,0.25396178]
[1763388704473,0.00022629,94118.0,94113.0,0.00238467]
[1763388705827,0.03614,94155.0,94113.0,0.00238467]
[1763388705828,0.323,94139.0,94113.0,0.00161963]
[1763388706158,0.02812014,94171.0,94113.0,0.00161963]
[1763388706159,0.01955134,94138.0,94132.0,0.10416178]
[1763388706364,0.03614,94172.0,94133.0,0.00161928]
[1763388706365,0.97135549,94150.0,94133.0,0.00161928]
[1763388706563,0.97135549,94150.0,94132.0,0.10416178]
[1763388706564,0.04610989,94149.0,94132.0,0.10416178]
[1763388706777,0.01955624,94148.0,94133.0,0.00268161]
[1763388706934,0.02655421,94147.0,94133.0,0.00268161]
[1763388707104,0.01955624,94146.0,94132.0,0.08684339]
[1763388707305,0.02655478,94145.0,94132.0,0.08684339]
[1763388707713,0.02655393,94148.0,94132.0,0.08684339]
[1763388707957,0.01955687,94147.0,94132.0,0.08684339]
[1763388708162,0.97135549,94142.0,94133.0,0.10416178]
[1763388708961,0.323,94142.0,94133.0,0.10416178]
[1763388710550,0.324,94142.0,94133.0,0.10416178]
[1763388710784,0.01955902,94141.0,94133.0,0.10416178]
[1763388710984,0.01955718,94140.0,94133.0,0.10416178]
[1763388711216,0.324,94142.0,94133.0,0.10416178]
[1763388711420,0.0195586,94141.0,94133.0,0.10416178]
[1763388711573,0.0195586,94140.0,94133.0,0.10416178]
[1763388711775,0.324,94142.0,94133.0,0.10416178]
[1763388712124,0.01955936,94141.0,94133.0,0.10416178]
[1763388712408,0.324,94142.0,94134.0,0.1498]
[1763388712609,0.01955995,94141.0,94134.0,0.1498]
[1763388712825,0.323,94142.0,94134.0,0.1498]
[1763388713051,0.01955936,94141.0,94134.0,0.1498]
[1763388713275,0.323,94142.0,94134.0,0.1498]
[1763388713479,0.01955912,94141.0,94134.0,0.1498]
[1763388713686,0.02755591,94141.0,94134.0,0.1498]
[1763388713891,0.001,94141.0,94135.0,0.10416178]
[1763388714095,0.001,94141.0,94135.0,0.09559878]
[1763388714300,0.323,94143.0,94135.0,0.09559878]
[1763388714931,0.323,94149.0,94135.0,0.09559878]
[1763388715522,0.323,94149.0,94135.0,0.06659878]
[1763388715723,0.001,94141.0,94136.0,0.00665988]
[1763388716119,0.323,94149.0,94136.0,0.00665988]
[1763388716418,0.02655393,94148.0,94136.0,0.00665988]
[1763388716652,0.02655393,94148.0,94135.0,0.06659878]
[1763388717201,0.02655393,94148.0,94136.0,0.001]
[1763388717424,0.323,94149.0,94135.0,0.06659878]
[1763388717664,0.02655393,94148.0,94135.0,0.06659878]
[1763388717865,0.02655393,94148.0,94135.0,0.07325866]
[1763388718502,0.323,94149.0,94135.0,0.07325866]
[1763388720243,0.323,94149.0,94135.0,0.06659878]
[1763388720470,0.323,94149.0,94125.0,0.02866459]
[1763388720471,0.02655393,94148.0,94125.0,0.02866459]
[1763388720659,0.02655393,94148.0,94133.0,0.10416178]
[1763388720660,0.6624778,94135.0,94133.0,0.10416178]
[1763388720873,0.6624778,94135.0,94124.0,0.02866459]
[1763388720874,0.323,94134.0,94128.0,0.10416178]
[1763388721161,0.323,94141.0,94115.0,0.02866459]
[1763388721380,0.323,94141.0,94113.0,0.02889705]
[1763388721381,0.323,94129.0,94113.0,0.02889705]
[1763388721585,0.323,94122.0,94113.0,0.00023246]
[1763388721789,0.02656155,94121.0,94113.0,0.00023246]
[1763388722405,0.323,94122.0,94114.0,0.10416178]
[1763388722608,0.323,94139.0,94115.0,0.00956277]
[1763388722810,0.323,94139.0,94114.0,0.10416178]
[1763388722811,0.323,94139.0,94133.0,0.10416178]
[1763388723015,0.02655675,94138.0,94114.0,0.10372455]
[1763388723213,0.02655675,94138.0,94132.0,0.10416178]
[1763388723473,0.323,94139.0,94132.0,0.10416178]
[1763388723693,0.02655675,94138.0,94115.0,0.00106325]
[1763388723904,0.02655675,94138.0,94113.0,0.00023246]
[1763388723905,0.323,94124.0,94116.0,0.10416178]
[1763388724866,0.323,94124.0,94113.0,0.00023246]
[1763388725069,0.02656098,94123.0,94113.0,0.00023246]
[1763388725268,0.02656098,94123.0,94114.0,0.10416178]
[1763388725559,0.323,94124.0,94114.0,0.10416178]
[1763388726164,0.02656098,94123.0,94114.0,0.10416178]
[1763388727179,0.323,94124.0,94114.0,0.10416178]
[1763388727419,0.6624778,94150.0,94114.0,0.10416178]
[1763388727659,0.6624778,94140.0,94131.0,0.10416178]
[1763388727859,0.02655647,94139.0,94131.0,0.10416178]
[1763388728065,0.6624778,94140.0,94131.0,0.10416178]
[1763388728281,0.01272383,94168.0,94131.0,0.10416178]
[1763388728527,0.323,94149.0,94146.0,0.10416178]
[1763388728748,0.323,94155.0,94131.0,0.10416178]
[1763388728947,0.323,94149.0,94131.0,0.10416178]
[1763388729150,0.323,94149.0,94146.0,0.10416178]
[1763388729621,0.323,94149.0,94131.0,0.10416178]
[1763388729849,0.323,94149.0,94146.0,0.00013246]
[1763388730094,0.323,94149.0,94131.0,0.10416178]
[1763388730095,0.323,94155.0,94147.0,0.10416178]
[1763388730303,0.00013241,94155.0,94147.0,0.10416178]
[1763388730484,0.32313241,94155.0,94147.0,0.10416178]
[1763388730832,0.32313241,94155.0,94148.0,0.00160332]
[1763388732395,0.32313241,94155.0,94147.0,0.10416178]
[1763388732599,0.32313241,94155.0,94131.0,0.07629424]
[1763388732834,0.6624778,94150.0,94147.0,0.10416178]
[1763388733007,0.323,94149.0,94147.0,0.10416178]
[1763388733420,0.323,94149.0,94131.0,0.07629424]
[1763388733623,0.323,94140.0,94131.0,0.07629424]
[1763388734875,0.323,94149.0,94131.0,0.07629424]
[1763388735083,0.01909011,94148.0,94131.0,0.07629424]
[1763388735501,0.01015124,94148.0,94131.0,0.07629424]
[1763388735700,0.02048324,94148.0,94131.0,0.07629424]
[1763388736144,0.00013241,94155.0,94146.0,0.10416178]
[1763388736562,0.01473143,94155.0,94131.0,0.07629424]
[1763388736717,0.02662698,94155.0,94131.0,0.07629424]
[1763388737054,0.6624778,94150.0,94131.0,0.06329424]
[1763388737262,0.6624778,94150.0,94131.0,0.06429424]
[1763388737483,0.6624778,94141.0,94114.0,0.25396178]
[1763388737617,0.323,94140.0,94132.0,0.10416178]
[1763388739469,0.323,94149.0,94132.0,0.10416178]
[1763388739779,0.02655393,94148.0,94132.0,0.10416178]
[1763388740274,0.3229,94141.0,94132.0,0.10416178]
[1763388740726,0.3229,94141.0,94132.0,0.10516178]
[1763388741182,0.3229,94141.0,94132.0,0.10416178]
[1763388741396,0.3229,94141.0,94114.0,0.25396178]
[1763388741397,0.3229,94141.0,94133.0,0.10416178]
[1763388741617,0.3229,94141.0,94114.0,0.10416178]
[1763388741834,0.6624778,94130.0,94114.0,0.10416178]
[1763388742207,0.6624778,94124.0,94114.0,0.10416178]
[1763388742418,0.323,94123.0,94114.0,0.10416178]
[1763388743421,0.323,94129.0,94114.0,0.10429427]
[1763388743600,0.02655957,94128.0,94114.0,0.10429427]
[1763388744034,0.02655957,94128.0,94114.0,0.10529427]
[1763388744193,0.02655957,94128.0,94114.0,0.08229427]
[1763388744399,0.02061795,94180.0,94114.0,0.08229427]
[1763388744400,0.53543408,94147.0,94114.0,0.08129427]
[1763388744598,0.6624778,94130.0,94114.0,0.08129427]
[1763388744848,0.02655929,94129.0,94114.0,0.08129427]
[1763388745053,0.6624778,94130.0,94114.0,0.08129427]
[1763388745402,0.02655929,94129.0,94114.0,0.08129427]
[1763388745603,0.6624778,94130.0,94114.0,0.08129427]
[1763388745799,0.323,94147.0,94129.0,0.10416178]
[1763388745800,0.6624778,94140.0,94129.0,0.10416178]
[1763388746000,0.03645,94163.0,94130.0,0.10416178]
[1763388746203,0.6624778,94140.0,94130.0,0.10416178]
[1763388746641,0.02655647,94139.0,94130.0,0.10416178]
[1763388746844,0.34955647,94139.0,94130.0,0.10416178]
[1763388747017,0.323,94139.0,94130.0,0.10416178]
[1763388747238,0.02655675,94138.0,94130.0,0.10416178]
[1763388748022,0.323,94139.0,94130.0,0.10416178]
[1763388748259,0.01061796,94180.0,94130.0,0.10416178]
[1763388748260,0.02816127,94145.0,94130.0,0.10416178]
[1763388748547,0.02816127,94145.0,94114.0,0.08129427]
[1763388748548,0.6624778,94140.0,94131.0,0.10416178]
[1763388748705,0.6624778,94141.0,94131.0,0.10416178]
[1763388748906,0.01955962,94140.0,94131.0,0.10416178]
[1763388749118,0.323,94140.0,94131.0,0.10416178]
[1763388749544,0.6624778,94141.0,94131.0,0.10416178]
[1763388750518,0.02655619,94140.0,94131.0,0.10416178]
[1763388750724,0.323,94149.0,94131.0,0.10416178]
[1763388750934,0.02253037,94148.0,94132.0,0.00106307]
[1763388751298,0.02253037,94148.0,94131.0,0.09022485]
[1763388751789,0.02816127,94157.0,94146.0,0.10416178]
[1763388751928,0.02655168,94156.0,94146.0,0.10416178]
[1763388752130,0.323,94159.0,94146.0,0.10416178]
[1763388752400,0.6624778,94160.0,94146.0,0.10416178]
[1763388752612,0.323,94159.0,94146.0,0.10416178]
[1763388753041,0.32313239,94159.0,94146.0,0.10416178]
[1763388754380,0.02655111,94158.0,94146.0,0.10416178]
[1763388754526,0.01711051,94158.0,94146.0,0.10416178]
[1763388754930,0.02655111,94158.0,94131.0,0.09022485]
[1763388755229,0.6624778,94150.0,94131.0,0.09022485]
[1763388755434,0.6624778,94141.0,94131.0,0.09022485]
[1763388755637,0.6624778,94150.0,94131.0,0.09022485]
[1763388755761,0.02655365,94149.0,94131.0,0.09022485]
[1763388756690,0.03754836,94163.0,94131.0,0.09022485]
[1763388756691,0.03756788,94172.0,94149.0,5.0]
[1763388756888,0.6624778,94230.0,94181.0,0.04341874]
[1763388757111,0.002,94239.0,94190.0,0.6624778]
[1763388757318,0.002,94239.0,94191.0,0.07855597]
[1763388757319,0.01279394,94233.0,94191.0,0.07855597]
[1763388757549,0.01279394,94233.0,94200.0,0.67247779]
[1763388757758,0.01279394,94233.0,94201.0,0.06628605]
[1763388757982,0.002,94239.0,94194.0,0.04341874]
[1763388758182,0.002,94239.0,94193.0,0.02286731]
[1763388758183,0.00064172,94220.0,94201.0,0.04341874]
[1763388758351,0.00064172,94220.0,94202.0,0.01486221]
[1763388758780,0.00064172,94220.0,94216.0,0.10416178]
[1763388758990,0.00064172,94220.0,94193.0,0.10416178]
[1763388759206,0.66311952,94220.0,94213.0,0.10416178]
[1763388759452,0.02497023,94219.0,94211.0,0.10416178]
[1763388760210,0.34797023,94219.0,94193.0,0.10416178]
[1763388760467,0.323,94219.0,94194.0,0.01486221]
[1763388760702,0.02497023,94218.0,94194.0,0.01486221]
[1763388760938,0.02497023,94218.0,94193.0,0.10416178]
[1763388761667,0.02497023,94218.0,94213.0,0.001]
[1763388762649,0.02497023,94218.0,94214.0,0.10416178]
[1763388762863,0.00064172,94220.0,94214.0,0.10416178]
[1763388763731,0.00064172,94220.0,94215.0,0.01388428]
[1763388765067,0.00064172,94220.0,94214.0,0.10416178]
[1763388765325,0.00064172,94220.0,94215.0,0.10416178]
[1763388765539,0.00064172,94220.0,94215.0,0.02616178]
[1763388766366,0.00064172,94220.0,94194.0,0.01654147]
[1763388766563,0.66311952,94220.0,94212.0,0.10416178]
[1763388766990,0.02497023,94219.0,94215.0,0.001]
[1763388767207,0.02497023,94219.0,94212.0,0.10416178]
[1763388767393,0.02497023,94219.0,94194.0,0.01654147]
[1763388767610,0.02497023,94219.0,94211.0,0.10416178]
[1763388767816,0.02497023,94219.0,94194.0,0.001]
[1763388767817,0.34797023,94219.0,94194.0,0.001]
[1763388767954,0.6624778,94210.0,94193.0,0.10416178]
[1763388768562,0.02497023,94209.0,94193.0,0.10416178]
[1763388769194,0.02497023,94218.0,94193.0,0.10416178]
[1763388769764,0.6624778,94203.0,94194.0,0.1498]
[1763388769965,0.02497023,94218.0,94194.0,0.1498]
[1763388769966,0.6624778,94210.0,94194.0,0.1498]
[1763388770215,0.39781,94219.0,94195.0,0.10416178]
[1763388770216,0.6624778,94204.0,94195.0,0.10416178]
[1763388770435,0.33882227,94203.0,94195.0,0.10416178]
[1763388770649,0.02497023,94202.0,94195.0,0.10416178]
[1763388771383,0.02497023,94202.0,94195.0,0.10516178]
[1763388771516,0.02497023,94208.0,94195.0,0.10516178]
[1763388771712,0.02497023,94208.0,94195.0,0.10416178]
[1763388771920,0.01720714,94208.0,94195.0,0.10416178]
[1763388772121,0.02415982,94208.0,94195.0,0.10516178]
[1763388772548,0.323,94209.0,94195.0,0.001]
[1763388772753,0.97026958,94205.0,94195.0,0.001]
[1763388772951,0.02497023,94204.0,94195.0,0.001]
[1763388773163,0.323,94204.0,94195.0,0.001]
[1763388773360,0.02497023,94203.0,94179.0,0.07570525]
[1763388773685,0.02497023,94203.0,94194.0,0.10416178]
[1763388774204,0.323,94204.0,94194.0,0.10416178]
[1763388774357,0.04341874,94219.0,94194.0,0.10416178]
[1763388774555,0.0265342,94218.0,94194.0,0.10416178]
[1763388776322,0.323,94209.0,94194.0,0.10416178]
[1763388776530,0.02653702,94208.0,94195.0,0.10416178]
[1763388778803,0.02653702,94208.0,94180.0,0.1498]
[1763388779006,0.01715436,94208.0,94196.0,0.10416178]
[1763388779396,0.02464807,94208.0,94196.0,0.10416178]
[1763388780381,0.323,94202.0,94181.0,0.1498]
[1763388780567,0.323,94202.0,94181.0,0.1108]
[1763388780568,0.97026958,94191.0,94181.0,0.1108]
[1763388780778,0.02654209,94190.0,94181.0,0.1108]
[1763388780982,0.02654209,94190.0,94165.0,0.0228069]
[1763388780983,0.38730209,94190.0,94165.0,0.1108]
[1763388781127,0.97026958,94180.0,94165.0,0.1108]
[1763388781339,0.323,94190.0,94179.0,0.10416178]
[1763388781534,0.323,94190.0,94179.0,0.11573604]
[1763388781740,0.32313244,94190.0,94179.0,0.11573604]
[1763388781950,0.00013244,94190.0,94166.0,0.1108]
[1763388782147,0.323,94189.0,94166.0,0.1108]
[1763388782457,0.323,94189.0,94179.0,0.10416178]
[1763388782458,0.02065836,94188.0,94179.0,0.10416178]
[1763388782664,0.323,94189.0,94179.0,0.10416178]
[1763388783250,0.00013244,94190.0,94179.0,0.10416178]
[1763388783492,0.01947742,94189.0,94179.0,0.10416178]
[1763388783690,0.04586999,94188.0,94179.0,0.10416178]
[1763388783898,0.02639257,94188.0,94179.0,0.10416178]
[1763388784100,0.00013244,94190.0,94179.0,0.10416178]
[1763388784305,0.01947863,94189.0,94179.0,0.10416178]
[1763388784552,0.00013244,94190.0,94179.0,0.10416178]
[1763388784759,0.01949133,94189.0,94180.0,0.01157414]
[1763388784961,0.01949133,94189.0,94179.0,0.10416178]
[1763388784962,0.00013244,94190.0,94181.0,0.01061891]
[1763388785294,0.00013244,94190.0,94182.0,0.1108]
[1763388785540,0.00013244,94190.0,94183.0,0.01061868]
[1763388786592,0.00013244,94190.0,94184.0,0.02286262]
[1763388786908,0.00013244,94190.0,94185.0,0.1108]
[1763388787261,8.09e-05,94190.0,94185.0,0.1108]
[1763388787668,8.09e-05,94190.0,94185.0,0.07579999]
[1763388788471,8.09e-05,94190.0,94186.0,0.0229144]
[1763388788674,8.09e-05,94190.0,94185.0,0.07679999]
[1763388788878,8.09e-05,94190.0,94186.0,0.02291569]
[1763388789077,8.09e-05,94190.0,94186.0,0.10416178]
[1763388789315,0.01954019,94189.0,94186.0,0.10416178]
[1763388789517,8.09e-05,94190.0,94186.0,0.10416178]
[1763388789718,0.01954399,94189.0,94186.0,0.10416178]
[1763388789921,8.09e-05,94190.0,94186.0,0.10416178]
[1763388790089,0.0195445,94189.0,94186.0,0.10416178]
[1763388790252,0.0195445,94188.0,94185.0,0.001]
[1763388790456,8.09e-05,94190.0,94185.0,0.001]
[1763388790659,0.01954611,94189.0,94185.0,0.001]
[1763388790864,0.04577735,94188.0,94185.0,0.001]
[1763388791068,0.01954611,94187.0,94186.0,0.10416178]
[1763388791279,8.09e-05,94190.0,94186.0,0.10416178]
[1763388791562,0.019546,94189.0,94186.0,0.10416178]
[1763388791781,8.09e-05,94190.0,94186.0,0.10516178]
[1763388791782,0.019546,94188.0,94186.0,0.10516178]
[1763388791932,8.09e-05,94190.0,94186.0,0.10516178]
[1763388792139,8.09e-05,94190.0,94186.0,0.10416178]
[1763388792336,8.09e-05,94190.0,94187.0,0.07686286]
[1763388792870,8.09e-05,94190.0,94187.0,0.09977718]
[1763388793034,8.09e-05,94190.0,94188.0,0.02291432]
[1763388793237,8.09e-05,94190.0,94189.0,0.00106284]
[1763388793439,8.09e-05,94190.0,94189.0,0.09871431]
[1763388793619,0.0002,94220.0,94189.0,0.09871431]
[1763388793825,0.34255284,94219.0,94213.0,0.02864389]
[1763388794004,0.34255284,94219.0,94214.0,0.05155821]
[1763388794005,0.04608704,94218.0,94214.0,0.05155821]
[1763388794206,0.01955284,94217.0,94215.0,0.02291432]
[1763388794406,0.01955284,94217.0,94215.0,0.02864389]
[1763388794407,0.02653477,94216.0,94215.0,0.02864389]
[1763388794617,0.48964096,94216.0,94215.0,0.02292306]
[1763388794868,0.48964096,94216.0,94208.0,0.03819185]
[1763388794869,0.36641874,94213.0,94205.0,0.02356695]
[1763388795167,0.04341874,94211.0,94197.0,0.03819185]
[1763388795370,0.323,94209.0,94199.0,0.03819185]
[1763388795527,0.04608986,94208.0,94199.0,0.03819185]
[1763388795733,0.323,94205.0,94197.0,0.03819185]
[1763388795938,0.04609099,94204.0,94192.0,0.03819185]
[1763388796117,0.01955284,94203.0,94192.0,0.03819185]
[1763388796321,0.04224071,94202.0,94193.0,0.03819185]
[1763388796570,0.01955284,94201.0,94199.0,0.001]
[1763388796781,0.03109961,94200.0,94199.0,0.001]
[1763388797069,0.03109961,94200.0,94193.0,0.03819185]
[1763388797275,0.03096761,94199.0,94193.0,0.03819185]
[1763388797477,0.01955284,94198.0,94194.0,0.03819185]
[1763388797753,0.04609296,94197.0,94195.0,0.03819185]
[1763388798039,0.01955284,94196.0,94193.0,0.03819185]
[1763388798284,0.323,94194.0,94192.0,0.001]
[1763388798509,0.0457226,94193.0,94192.0,0.001]
[1763388798731,0.0457226,94193.0,94190.0,0.03819185]
[1763388798899,0.01955284,94192.0,94190.0,0.03819185]
[1763388799107,0.01830526,94191.0,94190.0,0.03819185]
[1763388799309,0.04609465,94191.0,94190.0,0.03819185]
[1763388799650,0.01955284,94191.0,94190.0,0.03819185]
[1763388799843,0.01955284,94198.0,94190.0,0.03819185]
[1763388800019,0.04609296,94197.0,94190.0,0.03919185]
[1763388800204,0.01955284,94196.0,94190.0,0.03919185]
[1763388800405,0.04609352,94195.0,94190.0,0.03819185]
[1763388800608,0.01955284,94194.0,94190.0,0.03819185]
[1763388801016,0.01955284,94193.0,94190.0,0.03819185]
[1763388801221,0.0002,94220.0,94191.0,0.10416178]
[1763388801222,0.01955284,94192.0,94191.0,0.10416178]
[1763388801439,0.04608986,94208.0,94191.0,0.10429422]
[1763388801692,0.01960054,94207.0,94196.0,0.03825623]
[1763388801896,0.04613812,94206.0,94196.0,0.03825623]
[1763388802089,0.01960054,94205.0,94196.0,0.01425623]
[1763388802244,0.01960054,94205.0,94191.0,0.10429422]
[1763388802245,0.04458628,94204.0,94191.0,0.10429422]
[1763388802454,0.01960054,94203.0,94192.0,0.05728778]
[1763388802846,0.01960054,94202.0,94192.0,0.05728778]
[1763388803081,0.01960054,94201.0,94191.0,0.161582]
[1763388803256,0.01960054,94200.0,94191.0,0.161582]
[1763388803470,0.01960054,94199.0,94191.0,0.10429422]
[1763388803665,0.323,94200.0,94191.0,0.10429422]
[1763388803847,0.0336952,94199.0,94196.0,0.001]
[1763388804059,0.01409287,94199.0,94196.0,0.001]
[1763388804386,0.01409287,94199.0,94191.0,0.10429422]
[1763388804587,0.01960111,94198.0,94191.0,0.00013244]
[1763388804780,0.02654012,94197.0,94191.0,0.00013244]
[1763388805025,0.02653955,94199.0,94191.0,0.00013244]
[1763388805221,0.01960143,94198.0,94191.0,0.00013244]
[1763388805431,0.02654012,94197.0,94191.0,0.00013244]
[1763388805664,0.323,94200.0,94191.0,0.00013244]
[1763388805665,0.0265404,94196.0,94191.0,0.00013244]
[1763388805871,0.02653955,94199.0,94191.0,0.00113244]
[1763388806074,0.34260184,94198.0,94191.0,0.00113244]
[1763388806278,0.02654012,94197.0,94191.0,0.00013244]
[1763388806491,0.02653955,94199.0,94191.0,0.00113244]
[1763388806696,0.01960262,94198.0,94191.0,0.00113244]
[1763388806912,0.02654012,94197.0,94192.0,0.02295676]
[1763388807152,0.02653955,94199.0,94193.0,0.02295676]
[1763388807389,0.02653955,94199.0,94194.0,0.02295676]
[1763388807613,0.02653955,94199.0,94195.0,0.02295676]
[1763388807808,0.34953984,94198.0,94196.0,0.02295676]
[1763388808058,0.323,94198.0,94197.0,0.02295676]
[1763388808988,0.30490747,94198.0,94197.0,0.02295676]
[1763388809219,0.04341874,94196.0,94161.0,0.03642022]
[1763388809449,0.323,94187.0,94168.0,0.10416178]
[1763388809665,0.2229546,94190.0,94169.0,0.02295657]
[1763388809666,0.323,94179.0,94169.0,0.02295657]
[1763388809881,0.02654547,94178.0,94170.0,0.02295657]
[1763388810102,0.323,94179.0,94171.0,0.02295657]
[1763388810315,0.02654547,94178.0,94172.0,0.02295657]
[1763388810503,0.01573911,94177.0,94173.0,0.02295657]
[1763388810815,0.01573911,94177.0,94149.0,0.02133]
[1763388810816,0.09385412,94177.0,94174.0,0.02295657]
[1763388810998,0.35921,94179.0,94131.0,0.18781916]
[1763388810999,0.36641874,94169.0,94168.0,0.001]
[1763388811445,0.323,94169.0,94168.0,0.001]
[1763388811672,0.36641874,94169.0,94168.0,0.001]
[1763388811943,0.21473649,94169.0,94168.0,0.001]
[1763388812138,0.21238829,94168.0,94131.0,0.002]
[1763388812347,0.97026958,94160.0,94145.0,0.10416178]
[1763388812555,0.09258874,94169.0,94146.0,0.0229419]
[1763388812556,0.02655083,94159.0,94146.0,0.0229419]
[1763388812814,0.02512976,94168.0,94147.0,0.0229419]
[1763388813016,0.02512976,94168.0,94145.0,0.10416178]
[1763388813017,0.02512976,94168.0,94148.0,0.0229419]
[1763388813224,0.02654857,94167.0,94149.0,0.0229419]
[1763388813429,0.02654801,94169.0,94150.0,0.0229419]
[1763388813603,0.02654801,94169.0,94151.0,0.0229419]
[1763388813830,0.02654829,94168.0,94152.0,0.0229419]
[1763388814064,0.02654829,94168.0,94153.0,0.0229419]
[1763388814270,0.02654829,94168.0,94154.0,0.0229419]
[1763388814488,0.02654829,94168.0,94155.0,0.0229419]
[1763388814699,0.02654829,94168.0,94156.0,0.0229419]
[1763388814946,0.02654857,94167.0,94149.0,0.00013239]
[1763388815165,0.02654857,94167.0,94150.0,0.02290826]
[1763388815374,0.02654886,94166.0,94151.0,0.03449743]
[1763388815548,0.02654801,94169.0,94160.0,0.10416178]
[1763388815772,0.97026958,94170.0,94160.0,0.10416178]
[1763388815960,0.01496569,94169.0,94149.0,0.02137531]
[1763388816165,0.01496569,94178.0,94150.0,0.02290159]
[1763388816376,0.97026958,94170.0,94151.0,0.02290159]
[1763388816545,0.02654801,94169.0,94152.0,0.01689418]
[1763388816749,0.01704748,94169.0,94150.0,0.001]
[1763388816951,0.01932749,94169.0,94151.0,0.001]
[1763388817169,0.01340549,94169.0,94151.0,0.001]
[1763388817594,0.01340549,94169.0,94152.0,0.07579999]
[1763388818055,0.04341874,94160.0,94152.0,0.07579999]
[1763388818402,0.02655083,94159.0,94152.0,0.07579999]
[1763388818631,0.05904026,94160.0,94152.0,0.07579999]